[Event "Late-Titled-Tuesday-Blitz-January-23-2024"]
[Site "Chess.com"]
[Date "2024.01.23"]
[Round "5"]
[White "Piotrek1979"]
[Black "PawnEatingZombie"]
[Result "1-0"]
[WhiteElo "2393"]
[BlackElo "2110"]
[TimeControl "180+1"]
[EndTime "14:54:31 PST"]
[Termination "Piotrek1979 won by checkmate"]

1. c4 {[%clk 0:03:00.9]} 1... Nf6 {[%clk 0:02:59.4]} 2. Nf3 {[%clk 0:02:59.3]}
2... g6 {[%clk 0:02:59.9]} 3. g3 {[%clk 0:02:59.7]} 3... Bg7 {[%clk 0:03:00.4]}
4. Bg2 {[%clk 0:02:59.9]} 4... O-O {[%clk 0:03:01]} 5. O-O {[%clk 0:03:00]} 5...
d6 {[%clk 0:03:01.5]} 6. Nc3 {[%clk 0:02:58.4]} 6... Nc6 {[%clk 0:03:01.3]} 7.
d3 {[%clk 0:02:54.8]} 7... e5 {[%clk 0:03:01.8]} 8. Bg5 {[%clk 0:02:52]} 8... h6
{[%clk 0:02:58.6]} 9. Bxf6 {[%clk 0:02:52]} 9... Qxf6 {[%clk 0:02:59.2]} 10. Nd2
{[%clk 0:02:51.2]} 10... Nd4 {[%clk 0:02:47.1]} 11. e3 {[%clk 0:02:47.7]} 11...
Ne6 {[%clk 0:02:46.7]} 12. Rb1 {[%clk 0:02:43.7]} 12... a5 {[%clk 0:02:45.5]}
13. a3 {[%clk 0:02:42.7]} 13... c6 {[%clk 0:02:43.1]} 14. b4 {[%clk 0:02:41.2]}
14... axb4 {[%clk 0:02:42.9]} 15. axb4 {[%clk 0:02:41.8]} 15... Qe7 {[%clk
0:02:26.3]} 16. b5 {[%clk 0:02:40.6]} 16... Bd7 {[%clk 0:01:55.9]} 17. Qc2
{[%clk 0:02:38]} 17... h5 {[%clk 0:01:48.8]} 18. Ra1 {[%clk 0:02:37]} 18... h4
{[%clk 0:01:42.6]} 19. Nb3 {[%clk 0:02:16]} 19... hxg3 {[%clk 0:01:42.1]} 20.
hxg3 {[%clk 0:02:14.9]} 20... Ng5 {[%clk 0:01:37.4]} 21. Qe2 {[%clk 0:01:54.2]}
21... e4 {[%clk 0:01:24.9]} 22. d4 {[%clk 0:01:53.2]} 22... Bh3 {[%clk
0:01:07.8]} 23. Bxh3 {[%clk 0:01:48.7]} 23... Nxh3+ {[%clk 0:01:07.4]} 24. Kg2
{[%clk 0:01:49.6]} 24... Ng5 {[%clk 0:01:06.9]} 25. b6 {[%clk 0:01:45.1]} 25...
f5 {[%clk 0:01:01.1]} 26. Ra7 {[%clk 0:01:42.8]} 26... Rab8 {[%clk 0:00:57.9]}
27. Rfa1 {[%clk 0:01:27.9]} 27... Nf3 {[%clk 0:00:56.3]} 28. Nd2 {[%clk
0:01:26.9]} 28... Ng5 {[%clk 0:00:45.9]} 29. Qd1 {[%clk 0:01:21.5]} 29... Kf7
{[%clk 0:00:42.6]} 30. Qb3 {[%clk 0:01:20.5]} 30... Rh8 {[%clk 0:00:39.2]} 31.
c5+ {[%clk 0:01:12.3]} 31... d5 {[%clk 0:00:38.8]} 32. Nxd5 {[%clk 0:01:11.2]}
32... Qe6 {[%clk 0:00:18.6]} 33. Nf4 {[%clk 0:01:02.6]} 33... Qxb3 {[%clk
0:00:18.2]} 34. Nxb3 {[%clk 0:01:02.9]} 34... Nf3 {[%clk 0:00:18.8]} 35. Kf1
{[%clk 0:00:16.4]} 35... g5 {[%clk 0:00:17.5]} 36. Ng2 {[%clk 0:00:15.1]} 36...
Ke6 {[%clk 0:00:17.5]} 37. Ke2 {[%clk 0:00:15.6]} 37... Kd5 {[%clk 0:00:17.5]}
38. Nd2 {[%clk 0:00:15.2]} 38... g4 {[%clk 0:00:12.6]} 39. Nf4# {[%clk
0:00:12.9]} 1-0

[Event "Late-Titled-Tuesday-Blitz-January-23-2024"]
[Site "Chess.com"]
[Date "2024.01.23"]
[Round "5"]
[White "rdarruda"]
[Black "FM_Kappeler"]
[Result "1-0"]
[WhiteElo "2542"]
[BlackElo "2276"]
[TimeControl "180+1"]
[EndTime "14:54:33 PST"]
[Termination "rdarruda won on time"]

1. e4 {[%clk 0:02:34]} 1... c5 {[%clk 0:02:59.1]} 2. Nf3 {[%clk 0:02:33.3]} 2...
e6 {[%clk 0:02:59.3]} 3. Nc3 {[%clk 0:02:33.1]} 3... Nc6 {[%clk 0:02:58.1]} 4.
d4 {[%clk 0:02:32.5]} 4... cxd4 {[%clk 0:02:57.7]} 5. Nxd4 {[%clk 0:02:33.4]}
5... d6 {[%clk 0:02:57.9]} 6. Be3 {[%clk 0:02:33]} 6... Nf6 {[%clk 0:02:57.3]}
7. Be2 {[%clk 0:02:33]} 7... Be7 {[%clk 0:02:57]} 8. O-O {[%clk 0:02:32.9]} 8...
O-O {[%clk 0:02:56.6]} 9. f4 {[%clk 0:02:32.6]} 9... e5 {[%clk 0:02:55.9]} 10.
Nb3 {[%clk 0:02:25.8]} 10... exf4 {[%clk 0:02:55.7]} 11. Bxf4 {[%clk 0:02:26.6]}
11... Be6 {[%clk 0:02:54.1]} 12. Kh1 {[%clk 0:02:23.5]} 12... d5 {[%clk
0:02:44.1]} 13. exd5 {[%clk 0:02:23]} 13... Nxd5 {[%clk 0:02:43.4]} 14. Nxd5
{[%clk 0:02:23.4]} 14... Qxd5 {[%clk 0:02:37.7]} 15. Bf3 {[%clk 0:02:19.6]}
15... Qxd1 {[%clk 0:02:31.9]} 16. Raxd1 {[%clk 0:02:20.5]} 16... Rad8 {[%clk
0:02:24]} 17. c3 {[%clk 0:02:12.3]} 17... Bc4 {[%clk 0:02:03.3]} 18. Rfe1 {[%clk
0:02:09.7]} 18... Rxd1 {[%clk 0:01:49.2]} 19. Rxd1 {[%clk 0:02:08.9]} 19... Rd8
{[%clk 0:01:49.1]} 20. Rxd8+ {[%clk 0:02:07.5]} 20... Nxd8 {[%clk 0:01:35.8]}
21. Bb8 {[%clk 0:01:47.5]} 21... a6 {[%clk 0:01:30.6]} 22. Kg1 {[%clk
0:01:34.6]} 22... b5 {[%clk 0:01:21.6]} 23. Kf2 {[%clk 0:01:31.4]} 23... Bg5
{[%clk 0:01:05.7]} 24. Bd6 {[%clk 0:01:16.6]} 24... f5 {[%clk 0:00:50.4]} 25.
Nc5 {[%clk 0:00:47.6]} 25... Bxa2 {[%clk 0:00:40.3]} 26. Nxa6 {[%clk 0:00:45]}
26... Kf7 {[%clk 0:00:34]} 27. Nc7 {[%clk 0:00:39.8]} 27... Bc4 {[%clk
0:00:30.9]} 28. Be2 {[%clk 0:00:33.8]} 28... Nb7 {[%clk 0:00:25.4]} 29. Be5
{[%clk 0:00:26.9]} 29... Bc1 {[%clk 0:00:22.3]} 30. b4 {[%clk 0:00:25.8]} 30...
Bd2 {[%clk 0:00:09.8]} 31. Nxb5 {[%clk 0:00:23.7]} 31... Be6 {[%clk 0:00:03.9]}
32. Bf3 {[%clk 0:00:16]} 32... Bh6 {[%clk 0:00:02]} 33. Bd4 {[%clk 0:00:15.9]}
33... Nd8 {[%clk 0:00:01.3]} 34. Nd6+ {[%clk 0:00:15.9]} 1-0

[Event "Late-Titled-Tuesday-Blitz-January-23-2024"]
[Site "Chess.com"]
[Date "2024.01.23"]
[Round "5"]
[White "sebastianmarinp"]
[Black "Jem"]
[Result "0-1"]
[WhiteElo "2380"]
[BlackElo "2172"]
[TimeControl "180+1"]
[EndTime "14:54:33 PST"]
[Termination "Jem won by resignation"]

1. d4 {[%clk 0:03:00.9]} 1... Nf6 {[%clk 0:02:59.4]} 2. c4 {[%clk 0:03:00.3]}
2... g6 {[%clk 0:02:59.7]} 3. Nc3 {[%clk 0:02:56]} 3... Bg7 {[%clk 0:02:59.9]}
4. g3 {[%clk 0:02:53.6]} 4... O-O {[%clk 0:02:59.8]} 5. Bg2 {[%clk 0:02:53]}
5... d6 {[%clk 0:03:00]} 6. e4 {[%clk 0:02:52.5]} 6... Nc6 {[%clk 0:02:57.6]} 7.
Nge2 {[%clk 0:02:50.8]} 7... e5 {[%clk 0:02:57.4]} 8. O-O {[%clk 0:02:46.1]}
8... h6 {[%clk 0:02:56.8]} 9. h3 {[%clk 0:02:43]} 9... a5 {[%clk 0:02:42.6]} 10.
Be3 {[%clk 0:02:39.3]} 10... Nh5 {[%clk 0:02:39.5]} 11. Qd2 {[%clk 0:02:23.5]}
11... Kh7 {[%clk 0:02:38.3]} 12. Kh2 {[%clk 0:02:14]} 12... f5 {[%clk
0:02:27.5]} 13. f4 {[%clk 0:01:54.1]} 13... exd4 {[%clk 0:02:09.7]} 14. Nxd4
{[%clk 0:01:50.3]} 14... Nxd4 {[%clk 0:02:08.7]} 15. Bxd4 {[%clk 0:01:50]} 15...
c6 {[%clk 0:02:01.5]} 16. Rad1 {[%clk 0:01:41]} 16... Bxd4 {[%clk 0:01:29.4]}
17. Qxd4 {[%clk 0:01:41.9]} 17... Rf6 {[%clk 0:01:25.1]} 18. e5 {[%clk
0:01:37.1]} 18... Re6 {[%clk 0:01:19.3]} 19. exd6 {[%clk 0:01:29.9]} 19... Bd7
{[%clk 0:01:19.1]} 20. Rfe1 {[%clk 0:01:03.4]} 20... Qf6 {[%clk 0:01:14.3]} 21.
Qxf6 {[%clk 0:00:37.6]} 21... Nxf6 {[%clk 0:01:14.1]} 22. Rxe6 {[%clk
0:00:35.5]} 22... Bxe6 {[%clk 0:01:14.4]} 23. Re1 {[%clk 0:00:28.3]} 23... Bxc4
{[%clk 0:01:05.5]} 24. Re7+ {[%clk 0:00:23.4]} 24... Kg8 {[%clk 0:01:05.5]} 25.
Rxb7 {[%clk 0:00:21.2]} 25... Rd8 {[%clk 0:01:05.1]} 26. b3 {[%clk 0:00:15.8]}
26... Bd5 {[%clk 0:01:00.8]} 27. Bxd5+ {[%clk 0:00:10.5]} 27... Nxd5 {[%clk
0:00:59.3]} 28. Nxd5 {[%clk 0:00:07]} 28... cxd5 {[%clk 0:00:59.4]} 29. d7
{[%clk 0:00:06.7]} 29... d4 {[%clk 0:00:55.6]} 30. Kg2 {[%clk 0:00:06.2]} 30...
Kf7 {[%clk 0:00:55.4]} 31. Kf2 {[%clk 0:00:06.2]} 31... Ke6 {[%clk 0:00:55.1]}
32. Ke2 {[%clk 0:00:06]} 32... Kd5 {[%clk 0:00:49.2]} 33. Kd3 {[%clk 0:00:06]}
33... Kc5 {[%clk 0:00:48.9]} 34. a3 {[%clk 0:00:05.7]} 34... Kc6 {[%clk
0:00:46.9]} 35. Ra7 {[%clk 0:00:05.7]} 35... Kb6 {[%clk 0:00:46.1]} 36. Kxd4
{[%clk 0:00:02.8]} 36... Kxa7 {[%clk 0:00:45.4]} 37. Ke5 {[%clk 0:00:03.4]}
37... Rxd7 {[%clk 0:00:45.2]} 38. Kf6 {[%clk 0:00:03.7]} 38... Rd6+ {[%clk
0:00:45.3]} 39. Kf7 {[%clk 0:00:03.8]} 39... h5 {[%clk 0:00:45.5]} 40. b4 {[%clk
0:00:02.8]} 40... axb4 {[%clk 0:00:44.9]} 41. axb4 {[%clk 0:00:03.7]} 41... Kb6
{[%clk 0:00:43.9]} 42. Ke7 {[%clk 0:00:04.1]} 42... Rc6 {[%clk 0:00:43.6]} 43.
Kf7 {[%clk 0:00:04.4]} 43... Kb5 {[%clk 0:00:43.7]} 44. Kg7 {[%clk 0:00:04.8]}
44... Kxb4 {[%clk 0:00:43.6]} 45. Kh6 {[%clk 0:00:05.3]} 45... Kc3 {[%clk
0:00:43.9]} 46. Kg5 {[%clk 0:00:05.8]} 46... Kd4 {[%clk 0:00:44.2]} 47. g4
{[%clk 0:00:06.3]} 47... hxg4 {[%clk 0:00:43.3]} 48. hxg4 {[%clk 0:00:07.2]}
48... fxg4 {[%clk 0:00:43.2]} 49. Kxg4 {[%clk 0:00:07.5]} 49... Ke4 {[%clk
0:00:43.5]} 0-1

[Event "Late-Titled-Tuesday-Blitz-January-23-2024"]
[Site "Chess.com"]
[Date "2024.01.23"]
[Round "5"]
[White "AndreyNeves"]
[Black "Sanyura"]
[Result "0-1"]
[WhiteElo "2019"]
[BlackElo "2616"]
[TimeControl "180+1"]
[EndTime "14:54:35 PST"]
[Termination "Sanyura won by resignation"]

1. d4 {[%clk 0:02:52.3]} 1... Nf6 {[%clk 0:02:49]} 2. c4 {[%clk 0:02:52.1]} 2...
g6 {[%clk 0:02:48.7]} 3. Nc3 {[%clk 0:02:51.5]} 3... Bg7 {[%clk 0:02:44.7]} 4.
e4 {[%clk 0:02:49.9]} 4... d6 {[%clk 0:02:43.9]} 5. Nf3 {[%clk 0:02:50.5]} 5...
O-O {[%clk 0:02:43.4]} 6. Be2 {[%clk 0:02:51]} 6... e5 {[%clk 0:02:42.4]} 7. O-O
{[%clk 0:02:50.2]} 7... Nc6 {[%clk 0:02:42.1]} 8. d5 {[%clk 0:02:49.3]} 8... Ne7
{[%clk 0:02:42.1]} 9. b4 {[%clk 0:02:49.8]} 9... Nh5 {[%clk 0:02:41.5]} 10. Re1
{[%clk 0:02:48.7]} 10... Nf4 {[%clk 0:02:40.5]} 11. Bxf4 {[%clk 0:02:47]} 11...
exf4 {[%clk 0:02:40.5]} 12. Rc1 {[%clk 0:02:43.6]} 12... a5 {[%clk 0:02:39.9]}
13. b5 {[%clk 0:02:34.5]} 13... h6 {[%clk 0:02:21.5]} 14. Bd3 {[%clk 0:02:29.1]}
14... g5 {[%clk 0:02:17.1]} 15. e5 {[%clk 0:02:29.1]} 15... Bg4 {[%clk
0:02:13.8]} 16. e6 {[%clk 0:02:23.4]} 16... fxe6 {[%clk 0:02:09.4]} 17. dxe6
{[%clk 0:02:15.7]} 17... c6 {[%clk 0:02:09]} 18. Ne4 {[%clk 0:02:10.3]} 18... d5
{[%clk 0:02:03.4]} 19. Nc5 {[%clk 0:02:01.3]} 19... Qd6 {[%clk 0:01:57.7]} 20.
Nd7 {[%clk 0:01:50]} 20... Rfd8 {[%clk 0:01:55.1]} 21. c5 {[%clk 0:01:47.7]}
21... Qc7 {[%clk 0:01:49.3]} 22. b6 {[%clk 0:01:45.1]} 22... Qc8 {[%clk
0:01:49.5]} 23. Bb1 {[%clk 0:01:29.6]} 23... Bxe6 {[%clk 0:01:48.3]} 24. Rxe6
{[%clk 0:01:28.6]} 24... Qxd7 {[%clk 0:01:48.9]} 25. Qe2 {[%clk 0:01:06]} 25...
Kf8 {[%clk 0:01:45]} 26. h3 {[%clk 0:01:02.4]} 26... Ng8 {[%clk 0:01:44.2]} 27.
Re1 {[%clk 0:00:57.8]} 27... Re8 {[%clk 0:01:43.7]} 28. Nxg5 {[%clk 0:00:29.9]}
28... hxg5 {[%clk 0:01:39.3]} 29. Qg4 {[%clk 0:00:29.6]} 29... Rxe6 {[%clk
0:01:05.7]} 30. Rxe6 {[%clk 0:00:29]} 30... Qf7 {[%clk 0:00:17.5]} 31. Bg6
{[%clk 0:00:27.3]} 31... Nh6 {[%clk 0:00:17.4]} 32. Qe2 {[%clk 0:00:19.2]} 32...
Qd7 {[%clk 0:00:17.3]} 33. h4 {[%clk 0:00:11.2]} 33... Nf7 {[%clk 0:00:16.9]}
34. Qg4 {[%clk 0:00:09]} 34... Re8 {[%clk 0:00:15.7]} 35. Qf5 {[%clk 0:00:07.8]}
35... Qxe6 {[%clk 0:00:15.4]} 36. Qxe6 {[%clk 0:00:07.1]} 36... Rxe6 {[%clk
0:00:16.3]} 37. Bxf7 {[%clk 0:00:07.5]} 37... Re1+ {[%clk 0:00:16.2]} 0-1

[Event "Late-Titled-Tuesday-Blitz-January-23-2024"]
[Site "Chess.com"]
[Date "2024.01.23"]
[Round "5"]
[White "AlexOstrovskiy"]
[Black "Practical-Play"]
[Result "1-0"]
[WhiteElo "2771"]
[BlackElo "2521"]
[TimeControl "180+1"]
[EndTime "14:54:38 PST"]
[Termination "AlexOstrovskiy won by checkmate"]

1. e4 {[%clk 0:03:00.9]} 1... c5 {[%clk 0:02:56.1]} 2. Nc3 {[%clk 0:03:00.4]}
2... d6 {[%clk 0:02:37.3]} 3. d4 {[%clk 0:03:00.2]} 3... cxd4 {[%clk 0:02:38.2]}
4. Qxd4 {[%clk 0:03:00.7]} 4... Nc6 {[%clk 0:02:26.4]} 5. Qd2 {[%clk 0:03:00.6]}
5... Nf6 {[%clk 0:02:09]} 6. b3 {[%clk 0:03:00.6]} 6... e6 {[%clk 0:02:09.4]} 7.
Bb2 {[%clk 0:03:00.8]} 7... Be7 {[%clk 0:02:10]} 8. O-O-O {[%clk 0:03:00.2]}
8... O-O {[%clk 0:02:09.8]} 9. f4 {[%clk 0:03:00.6]} 9... a6 {[%clk 0:02:04.5]}
10. g4 {[%clk 0:02:59]} 10... Nxg4 {[%clk 0:01:54.8]} 11. Nf3 {[%clk 0:02:58.5]}
11... Qb6 {[%clk 0:01:39.3]} 12. Rg1 {[%clk 0:02:52.4]} 12... Nf6 {[%clk
0:01:16.9]} 13. Bd3 {[%clk 0:02:34.4]} 13... Nb4 {[%clk 0:01:12.7]} 14. e5
{[%clk 0:02:21.6]} 14... dxe5 {[%clk 0:01:03.1]} 15. fxe5 {[%clk 0:02:17.7]}
15... Nxd3+ {[%clk 0:01:00.8]} 16. Qxd3 {[%clk 0:02:15.7]} 16... Rd8 {[%clk
0:00:51.9]} 17. Qe2 {[%clk 0:01:44.2]} 17... Nd5 {[%clk 0:00:50.5]} 18. Nxd5
{[%clk 0:01:27.9]} 18... Rxd5 {[%clk 0:00:45.9]} 19. Rxd5 {[%clk 0:01:22.8]}
19... exd5 {[%clk 0:00:46.8]} 20. e6 {[%clk 0:01:22.8]} 20... f6 {[%clk
0:00:36.9]} 21. Nd4 {[%clk 0:01:22.4]} 21... Bc5 {[%clk 0:00:20.5]} 22. Qg2
{[%clk 0:00:39]} 22... Qc7 {[%clk 0:00:08.1]} 23. Qxd5 {[%clk 0:00:36]} 23...
Qd6 {[%clk 0:00:04.2]} 24. Rxg7+ {[%clk 0:00:27.4]} 24... Kh8 {[%clk 0:00:03.3]}
25. Rxh7+ {[%clk 0:00:11]} 25... Kxh7 {[%clk 0:00:03.2]} 26. Qh5+ {[%clk
0:00:11.6]} 26... Kg8 {[%clk 0:00:03.4]} 27. Qg6+ {[%clk 0:00:07.7]} 27... Kh8
{[%clk 0:00:02.8]} 28. Qxf6+ {[%clk 0:00:06.7]} 28... Kg8 {[%clk 0:00:03.3]} 29.
Qf7+ {[%clk 0:00:07.1]} 29... Kh8 {[%clk 0:00:03.7]} 30. Nf5+ {[%clk 0:00:06.8]}
30... Bd4 {[%clk 0:00:03]} 31. Bxd4+ {[%clk 0:00:06.6]} 31... Qxd4 {[%clk
0:00:03]} 32. Nxd4 {[%clk 0:00:07.3]} 32... Bd7 {[%clk 0:00:02.8]} 33. exd7
{[%clk 0:00:06.7]} 33... Rg8 {[%clk 0:00:03.7]} 34. Qxg8+ {[%clk 0:00:06.7]}
34... Kxg8 {[%clk 0:00:03.7]} 35. d8=Q+ {[%clk 0:00:07.6]} 35... Kh7 {[%clk
0:00:04.6]} 36. Qd5 {[%clk 0:00:07.9]} 36... Kh6 {[%clk 0:00:05.5]} 37. Qf5
{[%clk 0:00:07.8]} 37... b5 {[%clk 0:00:06.4]} 38. Ne6 {[%clk 0:00:08.4]} 38...
a5 {[%clk 0:00:06.7]} 39. Qg5+ {[%clk 0:00:09.3]} 39... Kh7 {[%clk 0:00:07.1]}
40. Qg7# {[%clk 0:00:10.2]} 1-0

[Event "Late-Titled-Tuesday-Blitz-January-23-2024"]
[Site "Chess.com"]
[Date "2024.01.23"]
[Round "5"]
[White "Fh2411"]
[Black "Iuckyducky"]
[Result "0-1"]
[WhiteElo "2578"]
[BlackElo "2365"]
[TimeControl "180+1"]
[EndTime "14:54:38 PST"]
[Termination "Iuckyducky won on time"]

1. d4 {[%clk 0:02:29.8]} 1... Nf6 {[%clk 0:02:59.2]} 2. Nf3 {[%clk 0:02:23.3]}
2... g6 {[%clk 0:02:58]} 3. Bf4 {[%clk 0:02:23.5]} 3... Bg7 {[%clk 0:02:58.1]}
4. e3 {[%clk 0:02:24.2]} 4... b6 {[%clk 0:02:47.1]} 5. h3 {[%clk 0:02:22.8]}
5... Bb7 {[%clk 0:02:47.5]} 6. Be2 {[%clk 0:02:22.4]} 6... c5 {[%clk 0:02:47.5]}
7. O-O {[%clk 0:02:22]} 7... d5 {[%clk 0:02:45.2]} 8. a4 {[%clk 0:02:20.7]} 8...
O-O {[%clk 0:02:43.1]} 9. a5 {[%clk 0:02:18.4]} 9... Nbd7 {[%clk 0:02:43.1]} 10.
a6 {[%clk 0:02:08.9]} 10... Bc6 {[%clk 0:02:43.1]} 11. Nc3 {[%clk 0:02:09.5]}
11... e6 {[%clk 0:02:30.9]} 12. Bb5 {[%clk 0:01:57.4]} 12... Rc8 {[%clk
0:02:19.1]} 13. Bxc6 {[%clk 0:01:52.6]} 13... Rxc6 {[%clk 0:02:20]} 14. Nb5
{[%clk 0:01:53.1]} 14... Ne4 {[%clk 0:02:18.6]} 15. Nxa7 {[%clk 0:01:48.8]}
15... Rc7 {[%clk 0:02:10.7]} 16. Nb5 {[%clk 0:01:23.2]} 16... Rc8 {[%clk
0:00:47.1]} 17. c3 {[%clk 0:01:22.1]} 17... Re8 {[%clk 0:00:29.4]} 18. a7 {[%clk
0:00:56.1]} 18... e5 {[%clk 0:00:29.3]} 19. dxe5 {[%clk 0:00:47.8]} 19... Nxe5
{[%clk 0:00:29.4]} 20. Nxe5 {[%clk 0:00:34.7]} 20... Bxe5 {[%clk 0:00:29.6]} 21.
Bxe5 {[%clk 0:00:15.6]} 21... Rxe5 {[%clk 0:00:30.5]} 22. Qg4 {[%clk 0:00:14.8]}
22... Re8 {[%clk 0:00:27.8]} 23. Rfd1 {[%clk 0:00:13.7]} 23... Qf6 {[%clk
0:00:19.8]} 24. Qf4 {[%clk 0:00:10]} 24... Qc6 {[%clk 0:00:15.5]} 25. c4 {[%clk
0:00:07.1]} 25... dxc4 {[%clk 0:00:13.9]} 26. Nd6 {[%clk 0:00:07.7]} 26... Nxd6
{[%clk 0:00:13.6]} 27. Qxd6 {[%clk 0:00:07.6]} 27... Qb7 {[%clk 0:00:07.1]} 28.
Qd7 {[%clk 0:00:05.9]} 28... Qe4 {[%clk 0:00:03.9]} 29. Rd6 {[%clk 0:00:03.1]}
29... Ra8 {[%clk 0:00:04.2]} 30. Rxb6 {[%clk 0:00:01.4]} 30... Kg7 {[%clk
0:00:03.7]} 0-1

[Event "Late-Titled-Tuesday-Blitz-January-23-2024"]
[Site "Chess.com"]
[Date "2024.01.23"]
[Round "5"]
[White "Polish_fighter3000"]
[Black "MITerryble"]
[Result "1/2-1/2"]
[WhiteElo "3093"]
[BlackElo "3028"]
[TimeControl "180+1"]
[EndTime "14:54:40 PST"]
[Termination "Game drawn by repetition"]

1. d4 {[%clk 0:03:00.9]} 1... e6 {[%clk 0:03:00.3]} 2. c4 {[%clk 0:03:00]} 2...
Bb4+ {[%clk 0:03:00]} 3. Nd2 {[%clk 0:02:58.8]} 3... Nf6 {[%clk 0:02:59.7]} 4.
Nf3 {[%clk 0:02:53]} 4... a5 {[%clk 0:02:57.3]} 5. a3 {[%clk 0:02:49.6]} 5...
Bxd2+ {[%clk 0:02:57]} 6. Bxd2 {[%clk 0:02:50.4]} 6... b6 {[%clk 0:02:57]} 7.
Bg5 {[%clk 0:02:46.5]} 7... Bb7 {[%clk 0:02:55.7]} 8. e3 {[%clk 0:02:46.5]} 8...
d6 {[%clk 0:02:54.5]} 9. Qc2 {[%clk 0:02:39.8]} 9... Nbd7 {[%clk 0:02:53.2]} 10.
Be2 {[%clk 0:02:30.6]} 10... h6 {[%clk 0:02:53.5]} 11. Bh4 {[%clk 0:02:30.3]}
11... g5 {[%clk 0:02:49.7]} 12. Bg3 {[%clk 0:02:30.2]} 12... Ne4 {[%clk
0:02:50.3]} 13. Rd1 {[%clk 0:01:45.4]} 13... f5 {[%clk 0:02:44.4]} 14. d5 {[%clk
0:01:30.7]} 14... e5 {[%clk 0:02:43]} 15. Nd2 {[%clk 0:01:13.1]} 15... Ndf6
{[%clk 0:02:21.3]} 16. Nxe4 {[%clk 0:01:02.2]} 16... Nxe4 {[%clk 0:02:21.5]} 17.
Bd3 {[%clk 0:01:01.8]} 17... Nxg3 {[%clk 0:02:19.3]} 18. fxg3 {[%clk 0:00:57.4]}
18... e4 {[%clk 0:02:13.7]} 19. Be2 {[%clk 0:00:57.7]} 19... O-O {[%clk
0:02:11.3]} 20. O-O {[%clk 0:00:53.9]} 20... Qe7 {[%clk 0:02:03.3]} 21. Qc3
{[%clk 0:00:45.8]} 21... Qg7 {[%clk 0:01:55.5]} 22. Qxg7+ {[%clk 0:00:31.2]}
22... Kxg7 {[%clk 0:01:56.4]} 23. g4 {[%clk 0:00:31.7]} 23... f4 {[%clk
0:01:28.2]} 24. Rd4 {[%clk 0:00:31.5]} 24... Rae8 {[%clk 0:01:24]} 25. Bd1
{[%clk 0:00:31.4]} 25... fxe3 {[%clk 0:00:54.1]} 26. Re1 {[%clk 0:00:23.1]}
26... Rf2 {[%clk 0:00:49.3]} 27. Rxe3 {[%clk 0:00:04.1]} 27... Rxb2 {[%clk
0:00:47.4]} 28. h3 {[%clk 0:00:03.1]} 28... Bc8 {[%clk 0:00:41.1]} 29. Ba4
{[%clk 0:00:03.1]} 29... Re5 {[%clk 0:00:36]} 30. Rdxe4 {[%clk 0:00:03.1]} 30...
Kf6 {[%clk 0:00:34.4]} 31. Bc6 {[%clk 0:00:02]} 31... Rc2 {[%clk 0:00:28.7]} 32.
Rf3+ {[%clk 0:00:01.7]} 32... Ke7 {[%clk 0:00:28.8]} 33. Rfe3 {[%clk 0:00:02.2]}
33... Kf6 {[%clk 0:00:25.2]} 34. Bb5 {[%clk 0:00:02.3]} 34... Ra2 {[%clk
0:00:20.6]} 35. a4 {[%clk 0:00:02.4]} 35... Rd2 {[%clk 0:00:20.5]} 36. Kh2
{[%clk 0:00:02.5]} 36... Rc2 {[%clk 0:00:20.1]} 37. Kg3 {[%clk 0:00:03]} 37...
Rd2 {[%clk 0:00:20.6]} 38. Rf3+ {[%clk 0:00:03.2]} 38... Ke7 {[%clk 0:00:20.5]}
39. Rfe3 {[%clk 0:00:03.3]} 39... Kf6 {[%clk 0:00:20.6]} 40. Kf3 {[%clk
0:00:03.4]} 40... Rb2 {[%clk 0:00:20.4]} 41. Kg3 {[%clk 0:00:02.5]} 41... Rd2
{[%clk 0:00:20.2]} 1/2-1/2

[Event "Late-Titled-Tuesday-Blitz-January-23-2024"]
[Site "Chess.com"]
[Date "2024.01.23"]
[Round "5"]
[White "Vamostodorecto"]
[Black "Nouali_Mohamed"]
[Result "1-0"]
[WhiteElo "2387"]
[BlackElo "2540"]
[TimeControl "180+1"]
[EndTime "14:54:42 PST"]
[Termination "Vamostodorecto won by resignation"]

1. d4 {[%clk 0:02:54.5]} 1... Nf6 {[%clk 0:02:58]} 2. c4 {[%clk 0:02:55.2]} 2...
g6 {[%clk 0:02:58]} 3. Nc3 {[%clk 0:02:55.7]} 3... Bg7 {[%clk 0:02:58.5]} 4. e4
{[%clk 0:02:54.7]} 4... d6 {[%clk 0:02:58.2]} 5. f3 {[%clk 0:02:55.1]} 5... O-O
{[%clk 0:02:58]} 6. Be3 {[%clk 0:02:55.8]} 6... Nbd7 {[%clk 0:02:58]} 7. Qd2
{[%clk 0:02:55.6]} 7... Re8 {[%clk 0:02:58.3]} 8. Bd3 {[%clk 0:02:52.8]} 8... c5
{[%clk 0:02:57.1]} 9. d5 {[%clk 0:02:48.2]} 9... a6 {[%clk 0:02:55.8]} 10. Nh3
{[%clk 0:02:41.8]} 10... Ne5 {[%clk 0:02:50.6]} 11. Be2 {[%clk 0:02:42]} 11...
Bxh3 {[%clk 0:02:46.1]} 12. gxh3 {[%clk 0:02:41]} 12... b5 {[%clk 0:02:45.5]}
13. cxb5 {[%clk 0:02:39.5]} 13... axb5 {[%clk 0:02:46.4]} 14. Nxb5 {[%clk
0:02:34.3]} 14... e6 {[%clk 0:02:18.3]} 15. dxe6 {[%clk 0:02:28.4]} 15... Rxe6
{[%clk 0:02:17.4]} 16. Nc3 {[%clk 0:02:25.1]} 16... d5 {[%clk 0:01:59]} 17. exd5
{[%clk 0:02:15.2]} 17... Rd6 {[%clk 0:01:44.3]} 18. Bxc5 {[%clk 0:01:45.4]}
18... Rd7 {[%clk 0:01:43.3]} 19. Rd1 {[%clk 0:01:31.2]} 19... Qc7 {[%clk
0:00:46.4]} 20. b4 {[%clk 0:01:25.8]} 20... Rad8 {[%clk 0:00:37.5]} 21. d6
{[%clk 0:01:09.2]} 21... Qc6 {[%clk 0:00:28.7]} 22. O-O {[%clk 0:01:09.8]} 22...
Nh5 {[%clk 0:00:21.8]} 23. f4 {[%clk 0:01:08.7]} 23... Bh6 {[%clk 0:00:14.1]}
24. Bxh5 {[%clk 0:01:02.4]} 24... gxh5 {[%clk 0:00:14.5]} 25. Qd5 {[%clk
0:01:00.1]} 25... Qxd5 {[%clk 0:00:10.2]} 26. Nxd5 {[%clk 0:01:01]} 26... Nc4
{[%clk 0:00:05]} 27. Nf6+ {[%clk 0:01:00.5]} 27... Kg7 {[%clk 0:00:04.9]} 28.
Nxd7 {[%clk 0:01:00.4]} 28... Rxd7 {[%clk 0:00:05.4]} 29. Rf3 {[%clk 0:00:45.9]}
29... Kf6 {[%clk 0:00:05]} 30. Rd4 {[%clk 0:00:43.7]} 30... Nb2 {[%clk
0:00:03.9]} 31. Rd5 {[%clk 0:00:36]} 31... Bf8 {[%clk 0:00:02.2]} 32. Bd4+
{[%clk 0:00:34]} 32... Ke6 {[%clk 0:00:01]} 33. Re5+ {[%clk 0:00:34.1]} 33...
Kxd6 {[%clk 0:00:01.6]} 34. Bxb2 {[%clk 0:00:34.6]} 34... Bg7 {[%clk 0:00:02]}
35. Rd3+ {[%clk 0:00:33.4]} 35... Kc7 {[%clk 0:00:02]} 36. Rxd7+ {[%clk
0:00:33.9]} 36... Kxd7 {[%clk 0:00:02.9]} 37. Rd5+ {[%clk 0:00:31.8]} 37... Ke6
{[%clk 0:00:03.4]} 38. Rd2 {[%clk 0:00:32.6]} 38... Bf8 {[%clk 0:00:03.3]} 39.
a3 {[%clk 0:00:31.8]} 39... Be7 {[%clk 0:00:02.7]} 40. Re2+ {[%clk 0:00:31.9]}
40... Kd7 {[%clk 0:00:02.9]} 41. Rxe7+ {[%clk 0:00:30.8]} 41... Kxe7 {[%clk
0:00:03.8]} 42. Kf2 {[%clk 0:00:31]} 1-0